[Event "FRA-ch 2018 Seniors Veterans"]
[Site "Nimes"]
[Date "2018.08.23"]
[Round "6"]
[White "Ricter, Jean-Paul"]
[Black "Caderon, Michel"]
[Result "1-0"]
[ECO "B21"]
[WhiteElo "2065"]
[BlackElo "1967"]
[Annotator "NA RC"]
[PlyCount "69"]
[EventDate "2018.08.18"]
[EventType "tourn"]
[EventCountry "FRA"]
[SourceTitle "playchess.com"]
[Source "ChessBase"]
[SourceQuality "1"]
[TimeControl "40/5400+30:1800+30"]

1. e4 {[%emt 0:00:00]} c5 {[%emt 0:00:00]} 2. d4 {[%emt 0:00:00]} cxd4 {[%emt 0:00:00]} 3. c3 {[%emt 0:00:02]} Nf6 {[%emt 0:00:00]} 4. e5 {[%emt 0:00:20]} Nd5 {[%emt 0:00:13]} 5. Qxd4 {[%emt 0:00:11]} e6 {[%emt 0:00:36]} 6. Nf3 {[%emt 0:00:23]} Nc6 {[%emt 0:00:17]} 7. Qe4 {[%emt 0:00:15]} f5 {[%emt 0:00:39]} 8. Qe2 {[%emt 0:00:23]} Qc7 {[%emt 0:00:20]} 9. g3 {[%emt 0:04:13]} b5 {[%emt 0:00:07] B22: Sicilian: 2 c3} (9... Nde7 10. Na3 Ng6 11. Nb5 Qb8 12. Bg2 a6 13. Nbd4 Ncxe5 14. O-O Be7 15. Re1 Nxf3+ 16. Bxf3 O-O 17. h4 Bf6 {½-½ (110) Kamsky,G (2723)-Grischuk,A (2728) Moscow 2008}) 10. Bg2 {[%emt 0:01:46]} a5 {[%emt 0:00:13]} 11. O-O {[%emt 0:02:48]} Ba6 {[%emt 0:00:05]} 12. Rd1 {[%emt 0:08:19]} Bc5 {[%emt 0:01:54]} 13. Rxd5 {[%emt 0:24:26]} exd5 {[%emt 0:00:08]} 14. e6 $146 {[%emt 0:00:06]} ({Predecessor:} 14. Bf4 b4 15. Qd1 Ne7 16. e6 Bd6 17. exd7+ Qxd7 18. cxb4 Bxf4 19. gxf4 {0-1 (25) Beric,Z (1950)-Loncar,R (2398) Rijeka 2017}) 14... O-O-O {[%emt 0:22:55]} 15. a4 {[%emt 0:00:16]} Qb7 {[%emt 0:01:12]} 16. Bf1 {[%emt 0:00:26]} Na7 {[%emt 0:03:43]} 17. Nd4 {[%emt 0:03:23]} Bxd4 {[%emt 0:03:23]} 18. cxd4 {[%emt 0:00:02]} Rhe8 {[%emt 0:02:06]} 19. e7 {[%emt 0:01:05]} Rxe7 {[%emt 0:00:19]} 20. Qxe7 {[%emt 0:00:03]} d6 $18 21. Qxb7+ {[%emt 0:01:59]} Kxb7 {[%emt 0:00:49]} 22. Nc3 {[%emt 0:01:09]} b4 {[%emt 0:01:40]} 23. Nxd5 {[%emt 0:01:28]} Bxf1 {[%emt 0:00:46]} 24. Kxf1 {[%emt 0:00:00]} Re8 {[%emt 0:01:15]} 25. Be3 Nc6 {[%emt 0:01:12]} 26. Rc1 {[%emt 0:06:20]} h6 {[%emt 0:01:31]} 27. h4 {[%emt 0:00:46]} g6 {[%emt 0:01:26]} 28. Rd1 {[%emt 0:03:58]} h5 {[%emt 0:01:30]} 29. Nf4 {[%emt 0:01:24]} Ne7 {[%emt 0:00:52]} 30. d5 {[%emt 0:01:33]} Rc8 {[%emt 0:01:46]} 31. Rc1 {[%emt 0:02:21]} Rxc1+ 32. Bxc1 Nxd5 {[%emt 0:00:50]} 33. Nxd5 {[%emt 0:00:35]} Kc6 {[%emt 0:00:02]} 34. Ne3 {[%emt 0:02:22]} Kc5 {[%emt 0:01:36]} 35. Ke2 {[%emt 0:02:05]} 1-0

[Event "FRA-ch 2018 Seniors Veterans"]
[Site "Nimes"]
[Date "2018.08.24"]
[Round "7"]
[White "Vial, Patrick"]
[Black "Ricter, Jean-Paul"]
[Result "0-1"]
[ECO "B01"]
[WhiteElo "2139"]
[BlackElo "2065"]
[Annotator "NA"]
[PlyCount "64"]
[EventDate "2018.08.18"]
[EventType "tourn"]
[EventCountry "FRA"]
[SourceTitle "playchess.com"]
[Source "ChessBase"]
[SourceQuality "1"]
[TimeControl "40/5400+30:1800+30"]

1. e4 {[%emt 0:00:00]} d5 {[%emt 0:00:00]} 2. exd5 {[%emt 0:00:00]} Qxd5 {[%emt 0:00:08]} 3. Nc3 {[%emt 0:00:10]} Qd8 {[%emt 0:00:41]} 4. d4 {[%emt 0:01:04]} Nf6 {[%emt 0:01:18]} 5. Bc4 {[%emt 0:02:40]} e6 {[%emt 0:04:03] LiveBook: 12 Games} 6. Nf3 {[%emt 0:00:12]} Be7 {[%emt 0:00:39]} 7. Qe2 $14 {[%emt 0:09:02]} O-O {[%emt 0:04:42]} 8. Bd2 {[%emt 0:05:33]} c6 {[%emt 0:10:30]} 9. O-O-O {[%emt 0:01:22]} b5 {[%emt 0:13:33]} 10. Bd3 {[%emt 0:00:08]} a5 {[%emt 0:01:04]} 11. g4 {[%emt 0:11:41]} b4 {[%emt 0:07:16]} 12. Ne4 {[%emt 0:00:14]} Ba6 {[%emt 0:00:51]} 13. Bxa6 {[%emt 0:13:21]} Nxa6 {[%emt 0:00:09]} 14. Nxf6+ {[%emt 0:04:38]} Bxf6 {[%emt 0:00:16]} 15. g5 {[%emt 0:00:14]} Be7 {[%emt 0:00:29]} 16. h4 {[%emt 0:01:21]} Qd5 {[%emt 0:02:53]} 17. Kb1 {[%emt 0:00:10]} Nc7 {[%emt 0:02:07]} 18. Ne5 {[%emt 0:01:42]} Nb5 {[%emt 0:08:20]} 19. Bc1 {[%emt 0:14:54]} Nxd4 {[%emt 0:11:21]} 20. Qe3 {[%emt 0:01:57]} c5 {[%emt 0:01:57]} 21. Rhg1 {[%emt 0:08:58]} a4 {[%emt 0:01:39]} 22. Ng4 {[%emt 0:07:40]} Qf5 {[%emt 0:04:01]} 23. Rxd4 {[%emt 0:06:52]} cxd4 {[%emt 0:03:01]} 24. Qxd4 {[%emt 0:00:09]} Kh8 {[%emt 0:03:55]} 25. Ne3 {[%emt 0:03:32]} Qc5 {[%emt 0:01:03]} 26. Qe4 {[%emt 0:03:04]} Rad8 {[%emt 0:02:13]} 27. h5 {[%emt 0:01:27]} Bxg5 {[%emt 0:03:36]} 28. Qg4 {[%emt 0:00:25]} Bf6 {[%emt 0:01:06]} 29. Qc4 {[%emt 0:01:28]} Qxc4 {[%emt 0:01:23]} 30. Nxc4 {[%emt 0:00:01]} Rd4 {[%emt 0:01:45]} 31. Nb6 {[%emt 0:00:16]} a3 {[%emt 0:00:22]} 32. h6 {[%emt 0:00:55]} g6 0-1

[Event "FRA-ch 2018 Seniors Veterans"]
[Site "Nimes"]
[Date "2018.08.24"]
[Round "7"]
[White "Boulos, Jean"]
[Black "Natale, Rodolphe"]
[Result "1-0"]
[ECO "B31"]
[WhiteElo "1784"]
[BlackElo "1826"]
[Annotator "NA"]
[PlyCount "103"]
[EventDate "2018.08.18"]
[EventType "tourn"]
[EventCountry "FRA"]
[SourceTitle "playchess.com"]
[Source "ChessBase"]
[SourceQuality "1"]
[TimeControl "40/5400+30:1800+30"]

1. e4 {[%emt 0:00:00]} c5 {[%emt 0:00:00]} 2. Nf3 {[%emt 0:00:00]} Nc6 {[%emt 0:00:28]} 3. Bb5 {[%emt 0:02:10]} g6 {[%emt 0:00:37]} 4. O-O {[%emt 0:01:35]} Bg7 {[%emt 0:00:29]} 5. c3 {[%emt 0:01:23]} Nf6 {[%emt 0:03:18]} 6. e5 {[%emt 0:05:58]} Nd5 {[%emt 0:01:18]} 7. d4 {[%emt 0:01:30]} cxd4 {[%emt 0:02:04]} 8. cxd4 {[%emt 0:02:00]} O-O {[%emt 0:02:26]} 9. Nc3 {[%emt 0:01:25]} Nxc3 {[%emt 0:05:04]} 10. bxc3 {[%emt 0:00:05]} d5 {[%emt 0:09:13]} 11. Bd3 {[%emt 0:11:04]} f6 {[%emt 0:12:41]} 12. exf6 {[%emt 0:09:41]} exf6 {[%emt 0:02:55]} 13. Re1 {[%emt 0:02:09]} Re8 {[%emt 0:03:02]} 14. Bf4 {[%emt 0:02:12]} Rxe1+ {[%emt 0:02:19]} 15. Nxe1 {[%emt 0:02:53]} Be6 {[%emt 0:01:31]} 16. Rb1 {[%emt 0:00:29]} Qe7 {[%emt 0:09:25]} 17. Qc2 {[%emt 0:05:16]} Re8 {[%emt 0:07:21]} 18. Nf3 {[%emt 0:09:32]} Qd7 {[%emt 0:05:36]} 19. h4 {[%emt 0:07:09]} f5 {[%emt 0:06:28]} 20. Qa4 a6 {[%emt 0:04:22]} 21. Qb3 {[%emt 0:04:51]} Re7 {[%emt 0:02:38]} 22. Bg5 {[%emt 0:02:18]} Rf7 {[%emt 0:00:10]} 23. Bf4 {[%emt 0:01:21]} Re7 {[%emt 0:04:09]} 24. Bc1 {[%emt 0:00:44]} h6 {[%emt 0:01:51]} 25. Qc2 {[%emt 0:02:56]} Qc7 {[%emt 0:03:38]} 26. g3 {[%emt 0:01:53]} h5 {[%emt 0:01:16]} 27. Bf4 {[%emt 0:01:45]} Qd8 {[%emt 0:00:47]} 28. Bg5 {[%emt 0:01:12]} Qd7 {[%emt 0:01:17]} 29. Bxe7 {[%emt 0:00:14]} Qxe7 {[%emt 0:00:06]} 30. Re1 {[%emt 0:00:36]} Qd6 {[%emt 0:01:17]} 31. Qe2 {[%emt 0:01:25]} Bd7 {[%emt 0:02:00]} 32. Qe3 {[%emt 0:03:10]} b5 {[%emt 0:01:20]} 33. Bc2 {[%emt 0:04:13]} b4 {[%emt 0:01:37]} 34. Bb3 {[%emt 0:04:51]} f4 {[%emt 0:00:35]} 35. Qxf4 {[%emt 0:02:33]} Qxf4 {[%emt 0:00:15]} 36. gxf4 {[%emt 0:00:07]} bxc3 {[%emt 0:00:17]} 37. Bxd5+ {[%emt 0:00:12]} Kf8 {[%emt 0:00:29]} 38. Ne5 {[%emt 0:00:16]} Nxe5 {[%emt 0:00:48]} 39. dxe5 {[%emt 0:01:54]} Bf5 {[%emt 0:01:33]} 40. Be4 {[%emt 0:01:07]} Bh6 {[%emt 0:01:15]} 41. Bxf5 {[%emt 0:30:15]} gxf5 {[%emt 0:30:10]} 42. Rc1 {[%emt 0:01:00]} Bxf4 {[%emt 0:00:23]} 43. Rxc3 {[%emt 0:00:08]} Bxe5 {[%emt 0:00:20]} 44. Rc5 {[%emt 0:00:09]} Bd4 {[%emt 0:02:20]} 45. Rxf5+ {[%emt 0:00:04]} Kg7 {[%emt 0:00:22]} 46. Rxh5 {[%emt 0:00:08]} Bc3 {[%emt 0:00:00]} 47. Kg2 {[%emt 0:00:00]} a5 {[%emt 0:00:00]} 48. a4 {[%emt 0:00:00]} Bd2 {[%emt 0:00:00]} 49. f3 {[%emt 0:00:00]} Bc3 {[%emt 0:00:00]} 50. Kg3 {[%emt 0:00:00]} Be1+ {[%emt 0:00:00]} 51. Kg4 {[%emt 0:00:00]} Bd2 {[%emt 0:00:00]} 52. f4 {[%emt 0:00:00]} 1-0

[Event "FRA-ch 2018 Seniors Veterans"]
[Site "Nimes"]
[Date "2018.08.26"]
[Round "9"]
[White "Dussol, Pierre"]
[Black "Legrand, Stephane"]
[Result "1/2-1/2"]
[ECO "A46"]
[WhiteElo "2096"]
[BlackElo "2053"]
[Annotator "NA"]
[PlyCount "105"]
[EventDate "2018.08.18"]
[EventType "tourn"]
[EventCountry "FRA"]
[SourceTitle "playchess.com"]
[Source "ChessBase"]
[SourceQuality "1"]
[TimeControl "40/5400+30:1800+30"]

1. d4 {[%emt 0:01:32]} e6 {[%emt 0:00:00]} 2. Nf3 {[%emt 0:00:44]} Nf6 {[%emt 0:00:48]} 3. e3 {[%emt 0:01:55]} b6 {[%emt 0:00:45]} 4. Bd3 {[%emt 0:00:49]} Bb7 {[%emt 0:00:05]} 5. O-O {[%emt 0:01:18]} d6 {[%emt 0:01:02] LiveBook: 32 Games} 6. b3 {[%emt 0:02:13]} g6 {[%emt 0:01:41]} 7. Bb2 {[%emt 0:12:23]} Bg7 {[%emt 0:00:18]} 8. Nbd2 {[%emt 0:00:57]} O-O {[%emt 0:00:22]} 9. c4 {[%emt 0:04:49] A47: 1 d4 Nf6 2 Nf3 b6: Torre, London and Colle Systems} (9. Qe2 Nbd7 10. Rfd1 c5 11. Ba6 Bxa6 12. Qxa6 Qc7 13. Qd3 Rfd8 14. c4 a6 15. Rac1 Qb7 16. Qb1 b5 {0-1 (68) Socko,M (2472)-Socko,B (2624) Grosseto Prugna 2015}) 9... Nc6 {[%emt 0:02:41]} 10. a3 $146 {[%emt 0:04:48]} ({Predecessor:} 10. Rc1 Re8 11. Bb1 e5 12. Re1 Qe7 13. Qe2 {½-½ (13) Czyz,A (2061)-Piotrowski,P (1875) Polanica Zdroj 2010}) 10... e5 {[%emt 0:06:17]} 11. d5 {[%emt 0:06:47]} Ne7 {[%emt 0:02:38]} 12. e4 {[%emt 0:01:09]} Nh5 {[%emt 0:00:44]} 13. g3 {[%emt 0:07:37]} Bc8 {[%emt 0:07:48]} 14. Nh4 {[%emt 0:05:10]} Bh3 {[%emt 0:09:59]} 15. Re1 {[%emt 0:01:24]} Bh6 {[%emt 0:04:07]} 16. Be2 {[%emt 0:08:22]} Ng7 {[%emt 0:02:11]} 17. Bc3 {[%emt 0:09:48]} g5 {[%emt 0:06:16]} 18. Ng2 {[%emt 0:01:01]} f5 {[%emt 0:01:51]} 19. exf5 {[%emt 0:00:20]} Ngxf5 {[%emt 0:09:30]} 20. Ne4 {[%emt 0:03:21]} Nd4 {[%emt 0:03:35]} 21. Bxd4 {[%emt 0:02:18]} exd4 {[%emt 0:00:05]} 22. Bg4 {[%emt 0:02:11]} Bxg4 {[%emt 0:01:07]} 23. Qxg4 {[%emt 0:00:04]} Ng6 {[%emt 0:00:18]} 24. Qh5 {[%emt 0:06:26]} Kg7 {[%emt 0:00:54]} 25. Rad1 {[%emt 0:04:24]} Ne5 {[%emt 0:02:31]} 26. f4 {[%emt 0:01:18]} gxf4 {[%emt 0:00:26]} 27. gxf4 {[%emt 0:03:15]} Bxf4 {[%emt 0:00:43]} 28. Nxf4 {[%emt 0:00:17]} Rxf4 {[%emt 0:00:09]} 29. Ng5 {[%emt 0:00:24]} Qg8 {[%emt 0:06:33]} 30. Kh1 {[%emt 0:02:12]} Kh8 {[%emt 0:00:10]} 31. Ne6 {[%emt 0:02:02]} Rf2 {[%emt 0:04:46]} 32. Rg1 {[%emt 0:00:18]} Qf7 {[%emt 0:00:12]} 33. Qxf7 {[%emt 0:00:43]} Rxf7 {[%emt 0:00:15]} 34. Nxd4 {[%emt 0:00:43]} a5 {[%emt 0:14:09]} 35. a4 {[%emt 0:00:39]} Nd7 {[%emt 0:01:18]} 36. Rg3 {[%emt 0:01:06]} Nc5 {[%emt 0:02:22]} 37. Re1 {[%emt 0:00:28]} Raf8 {[%emt 0:02:45]} 38. Rge3 {[%emt 0:01:14]} Kg7 {[%emt 0:04:52]} 39. Nb5 {[%emt 0:01:35]} Na6 {[%emt 0:00:47]} 40. R1e2 {[%emt 0:01:03]} Rf3 {[%emt 0:02:04]} 41. Kg2 {[%emt 0:00:53]} Rxe3 {[%emt 0:00:26]} 42. Rxe3 {[%emt 0:00:10]} Rf7 {[%emt 0:00:24]} 43. Kg3 {[%emt 0:04:32]} Kg6 {[%emt 0:03:18]} 44. Re8 {[%emt 0:12:14]} Nc5 {[%emt 0:02:32]} 45. Rc8 {[%emt 0:01:08]} Nxb3 {[%emt 0:07:25]} 46. Nxc7 {[%emt 0:00:46]} Nc5 {[%emt 0:01:32]} 47. Nb5 {[%emt 0:00:58]} Ne4+ {[%emt 0:01:19]} 48. Kg2 $11 {[%emt 0:00:34]} Rf2+ {[%emt 0:03:16]} 49. Kg1 {[%emt 0:00:09]} Rc2 {[%emt 0:00:10]} 50. Rc6 {[%emt 0:05:11]} Kg5 {[%emt 0:04:14]} 51. Nxd6 {[%emt 0:02:55]} Nxd6 {[%emt 0:00:47]} 52. Rxd6 {[%emt 0:00:03]} Rxc4 {[%emt 0:00:07]} 53. Rxb6 1/2-1/2

[Event "FRA-ch 2018 Seniors Veterans"]
[Site "Nimes"]
[Date "2018.08.26"]
[Round "9"]
[White "Ricter, Jean-Paul"]
[Black "Fillon, Damien"]
[Result "1/2-1/2"]
[ECO "A13"]
[WhiteElo "2065"]
[BlackElo "2048"]
[Annotator "NA"]
[PlyCount "36"]
[EventDate "2018.08.18"]
[EventType "tourn"]
[EventCountry "FRA"]
[SourceTitle "playchess.com"]
[Source "ChessBase"]
[SourceQuality "1"]
[TimeControl "40/5400+30:1800+30"]

1. c4 {[%emt 0:03:04]} e6 {[%emt 0:00:00]} 2. g3 {[%emt 0:00:25]} Nf6 {[%emt 0:00:20]} 3. Bg2 {[%emt 0:00:33]} c5 {[%emt 0:06:44]} 4. Nf3 {[%emt 0:01:24]} Nc6 {[%emt 0:00:11]} 5. O-O {[%emt 0:00:55]} d5 {[%emt 0:01:40]} 6. d3 {[%emt 0:02:53]} Be7 {[%emt 0:06:42]} 7. b3 {[%emt 0:05:10]} O-O {[%emt 0:06:06]} 8. Bb2 $15 {[%emt 0:04:29] LiveBook: 86 Games} d4 {[%emt 0:03:31]} 9. Na3 {[%emt 0:03:16]} e5 {[%emt 0:08:35]} 10. Nc2 {[%emt 0:01:12]} a5 {[%emt 0:00:12]} 11. Na3 {[%emt 0:05:06]} Re8 {[%emt 0:05:58]} 12. Nb5 {[%emt 0:03:59]} Bf8 {[%emt 0:02:04]} 13. Re1 {[%emt 0:08:43]} h6 {[%emt 0:01:38]} 14. Na3 {[%emt 0:05:59]} Bd6 {[%emt 0:05:53]} 15. Nb5 {[%emt 0:02:43]} Bf8 {[%emt 0:06:02]} 16. Na3 {[%emt 0:00:55]} Bd6 {[%emt 0:00:57]} 17. Nb5 {[%emt 0:01:25]} Bf8 {[%emt 0:00:22]} 18. Na3 {[%emt 0:00:41]} Nb8 1/2-1/2